bitfinex-derivatives/quotes_SOLF0:USTF0_20250808
["timestamp","ask_amount","ask_price","bid_price","bid_amount"]
[1754693136327,3.25,177.61,177.6,6.35582752]
[1754693139939,3.25,177.6,177.58,143.53582752]
[1754693140235,3.25,177.59,177.58,143.53582752]
[1754693143636,5.6297,177.6,177.58,143.53582752]
[1754693143834,6.29504855,177.67,177.59,3.02]
[1754693144036,3.25,177.63,177.62,3.02]
[1754693144236,3.25,177.63,177.62,140.38]
[1754693145742,9.38830307,177.69,177.62,140.38]
[1754693145743,3.25,177.65,177.63,3.02]
[1754693145938,3.25,177.65,177.64,3.02]
[1754693146238,12.64974493,177.65,177.64,3.02]
[1754693147242,3.25,177.65,177.64,3.02]
[1754693147846,3.25,177.67,177.64,3.02]
[1754693148038,3.25,177.67,177.66,6.15582752]
[1754693148336,12.64974493,177.67,177.66,6.15582752]
[1754693148539,3.25,177.67,177.66,3.02]
[1754693148740,3.25,177.67,177.66,6.15582752]
[1754693152143,8.8775,177.67,177.66,6.15582752]
[1754693152644,3.25,177.67,177.66,6.15582752]
[1754693153037,3.25,177.67,177.66,3.02]
[1754693153347,8.8775,177.67,177.66,6.15582752]
[1754693153742,5.6272,177.68,177.66,6.15582752]
[1754693153945,8.8772,177.68,177.66,3.13582752]
[1754693154147,18.27694493,177.68,177.67,3.02]
[1754693154343,5.6268,177.69,177.67,3.02]
[1754693154648,5.6268,177.69,177.68,143.47582752]
[1754693154854,15.02654493,177.69,177.68,143.47582752]
[1754693155149,8.8768,177.69,177.68,143.47582752]
[1754693155844,5.6266,177.7,177.68,143.47582752]
[1754693156044,8.8766,177.7,177.69,6.15582752]
[1754693157344,3.25,177.71,177.7,3.02]
[1754693157548,3.25,177.71,177.7,140.32]
[1754693157748,8.8762,177.72,177.7,140.32]
[1754693158048,8.8762,177.72,177.71,6.15582752]
[1754693158246,18.27594493,177.72,177.71,6.15582752]
[1754693158950,18.27594493,177.72,177.71,3.13582752]
[1754693160149,3.25,177.7,177.67,3.02]
[1754693160351,3.25,177.7,177.69,3.13582752]
[1754693160955,3.25,177.69,177.66,3.13582752]
[1754693161153,3.25,177.69,177.67,137.28]
[1754693161347,5.6271,177.68,177.67,137.28]
[1754693161651,8.8771,177.68,177.67,137.28]
[1754693166358,12.52413059,177.73,177.68,3.19]
[1754693166359,6.29504855,177.72,177.68,3.19]
[1754693166654,3.02,177.69,177.68,3.19]
[1754693167456,3.02,177.68,177.67,140.47]
[1754693167760,3.02,177.68,177.67,143.60582752]
[1754693171360,5.6265,177.7,177.68,3.19]
[1754693171361,3.02,177.69,177.68,3.19]
[1754693172956,8.6463,177.71,177.68,3.19]
[1754693173162,3.02,177.7,177.68,3.19]
[1754693173560,3.02,177.7,177.69,3.19]
[1754693174262,3.02,177.7,177.69,3.13582752]
[1754693174463,8.6465,177.7,177.69,3.13582752]
[1754693175965,3.02,177.72,177.69,3.13582752]
[1754693176169,3.02,177.72,177.7,137.26]
[1754693176560,5.6261,177.71,177.7,137.26]
[1754693176760,8.6461,177.71,177.7,137.26]
[1754693186980,18.04584493,177.71,177.7,137.26]
[1754693187169,24.34089348,177.71,177.7,137.26]
[1754693187875,18.04584493,177.71,177.7,137.26]
[1754693188576,24.34089348,177.71,177.7,137.26]
[1754693190476,18.04584493,177.71,177.7,137.26]
[1754693192778,18.04584493,177.71,177.7,139.26539047]
[1754693195178,18.04584493,177.71,177.7,142.45539047]
[1754693195584,24.36196278,177.71,177.7,142.45539047]
[1754693195979,18.04584493,177.71,177.7,147.89315404]
[1754693196473,18.04584493,177.71,177.7,142.45539047]
[1754693196680,15.02584493,177.71,177.7,142.37539047]
[1754693196879,18.10584493,177.71,177.7,142.37539047]
[1754693197078,3.08,177.71,177.7,142.37539047]
[1754693197283,5.6259,177.72,177.7,142.37539047]
[1754693197484,8.7059,177.72,177.7,142.37539047]
[1754693198785,8.7061,177.71,177.7,142.37539047]
[1754693199287,12.47974493,177.71,177.7,142.37539047]
[1754693200078,18.10584493,177.71,177.7,142.37539047]
[1754693204486,12.47974493,177.71,177.7,142.37539047]
[1754693205390,18.10584493,177.71,177.7,142.37539047]
[1754693207186,8.32150832,177.76,177.71,3.11]
[1754693207187,3.08,177.75,177.71,3.11]
[1754693207387,3.08,177.75,177.74,2.00539047]
[1754693207592,3.08,177.75,177.74,5.11539047]
[1754693207793,8.7052,177.75,177.74,5.11539047]
[1754693210585,8.7052,177.75,177.74,3.11]
[1754693210784,8.7052,177.75,177.74,5.11539047]
[1754693210986,8.7052,177.75,177.74,2.00539047]
[1754693218486,3.08,177.75,177.74,2.00539047]
[1754693218687,5.6246,177.76,177.73,3.11]
[1754693218903,3.08,177.74,177.73,3.11]
[1754693219092,3.08,177.74,177.73,5.11539047]
[1754693219293,5.6246,177.76,177.73,5.11539047]
[1754693219593,8.7046,177.76,177.75,2.00539047]
[1754693219899,18.10434493,177.76,177.75,2.00539047]
[1754693220100,8.7046,177.76,177.75,2.00539047]
[1754693222502,5.6246,177.76,177.73,3.11]
[1754693222796,3.08,177.75,177.73,3.11]
[1754693223299,15.02434493,177.76,177.73,3.11]
[1754693223300,18.10434493,177.76,177.73,3.11]
[1754693223497,3.08,177.75,177.73,3.11]
[1754693223697,9.39974493,177.76,177.73,3.11]
[1754693223698,12.47974493,177.76,177.73,3.11]
[1754693223897,5.6235,177.8,177.75,2.00539047]
[1754693224101,5.6235,177.8,177.7,137.26]
[1754693224102,3.08,177.78,177.76,3.11]
[1754693224296,3.08,177.78,177.77,2.00539047]
[1754693224496,3.08,177.78,177.77,5.11539047]
[1754693225000,3.08,177.78,177.77,2.00539047]
[1754693225802,3.08,177.78,177.77,5.11539047]
[1754693229496,5.6236,177.79,177.77,5.11539047]
[1754693229807,6.30696848,177.84,177.77,5.11539047]
[1754693229808,3.22,177.78,177.77,5.11539047]
[1754693230002,12.61974493,177.78,177.77,5.11539047]
[1754693233407,3.22,177.82,177.78,3.11]
[1754693233596,3.22,177.82,177.81,2.00539047]
[1754693234903,3.22,177.82,177.81,5.11539047]
[1754693244809,5.6224,177.83,177.81,5.11539047]
[1754693245019,8.8424,177.83,177.82,2.00539047]
[1754693245316,8.8424,177.83,177.82,5.11539047]
[1754693245317,3.22,177.83,177.82,5.11539047]
[1754693247220,3.22,177.83,177.82,2.00539047]
[1754693247818,3.22,177.83,177.82,5.11539047]
[1754693252220,3.22,177.83,177.82,2.00539047]
[1754693252816,3.22,177.83,177.82,5.11539047]
[1754693253311,5.6217,177.85,177.82,5.11539047]
[1754693253514,5.6217,177.85,177.84,5.11539047]
[1754693253714,15.02144493,177.85,177.84,5.11539047]
[1754693253915,5.6217,177.85,177.84,5.11539047]
[1754693255424,8.8417,177.85,177.84,5.11539047]
[1754693257525,3.25,177.83,177.82,3.1]
[1754693257720,3.25,177.83,177.82,5.10539047]
[1754693258420,8.8723,177.83,177.82,5.10539047]
[1754693258621,8.8723,177.83,177.82,2.00539047]
[1754693258923,3.25,177.83,177.82,5.10539047]
[1754693259624,8.8721,177.84,177.83,3.1]
[1754693259824,18.27184493,177.84,177.83,5.10539047]
[1754693261321,12.64974493,177.84,177.83,5.10539047]
[1754693261824,3.25,177.84,177.83,5.10539047]
[1754693264923,3.25,177.84,177.83,10.72769047]
[1754693265113,3.25,177.84,177.83,5.10539047]
[1754693271733,5.6218,177.85,177.83,5.10539047]
[1754693271934,5.6218,177.85,177.84,2.00539047]
[1754693272240,18.27154493,177.85,177.84,2.00539047]
[1754693272935,8.8718,177.85,177.84,2.00539047]
[1754693273329,8.8718,177.85,177.84,5.10539047]
[1754693278143,3.25,177.85,177.84,5.10539047]
[1754693280558,3.25,177.86,177.84,2.00539047]
[1754693280853,9.55696848,177.88,177.85,3.1]
[1754693281036,9.55696848,177.88,177.86,138.92539047]
[1754693281236,18.95671341,177.88,177.87,3.1]
[1754693281447,18.95671341,177.88,177.86,138.92539047]
[1754693281448,3.25,177.87,177.86,138.92539047]
[1754693281842,8.8711,177.87,177.86,138.92539047]
[1754693282146,8.8711,177.87,177.86,140.02]
[1754693282344,8.8711,177.87,177.86,142.02539047]
[1754693283548,24.57781341,177.87,177.86,138.92539047]
[1754693283745,24.57781341,177.87,177.86,2.00539047]
[1754693284450,15.17806848,177.87,177.86,5.10539047]
[1754693284641,6.30696848,177.87,177.86,5.10539047]
[1754693284845,3.25,177.89,177.87,3.1]
[1754693284846,6.30696848,177.88,177.87,3.1]
[1754693285150,6.30696848,177.88,177.87,5.10539047]
[1754693285447,9.55696848,177.88,177.87,5.10539047]
[1754693286045,11.92776848,177.88,177.87,2.00539047]
[1754693286261,15.11776848,177.88,177.87,5.00539047]
[1754693293350,6.30696848,177.9,177.87,2.00539047]
[1754693293557,3.19,177.9,177.89,5.00539047]
[1754693293758,12.58974493,177.9,177.89,5.00539047]
[1754693293960,3.19,177.9,177.89,5.00539047]
[1754693294254,8.8102,177.9,177.89,5.00539047]
[1754693294854,5.6202,177.9,177.89,5.00539047]
[1754693295155,8.8102,177.9,177.89,5.00539047]
[1754693296358,6.30696848,177.92,177.9,3.0]
[1754693296550,9.49696848,177.92,177.91,5.00539047]
[1754693296750,18.89671341,177.92,177.91,5.00539047]
[1754693297354,24.51621341,177.92,177.91,5.00539047]
[1754693298962,5.6198,177.91,177.9,2.00539047]
[1754693299151,8.8098,177.91,177.9,2.00539047]
[1754693299556,8.8098,177.91,177.9,5.00539047]
[1754693301466,8.8098,177.91,177.9,2.00539047]
[1754693303569,8.8098,177.91,177.9,5.00539047]
[1754693304569,18.20954493,177.91,177.9,2.00539047]
[1754693304762,8.8101,177.9,177.89,5.00539047]
[1754693306472,11.92686848,177.91,177.9,3.0]
[1754693306666,5.6199,177.91,177.9,3.0]
[1754693307072,15.11656848,177.92,177.9,3.0]
[1754693307268,15.11656848,177.92,177.91,5.00539047]
[1754693307465,24.51631341,177.92,177.91,5.00539047]
[1754693307670,15.11656848,177.92,177.91,5.00539047]
[1754693312378,18.20934493,177.92,177.91,5.00539047]
[1754693314869,9.39974493,177.92,177.91,2.00539047]
[1754693315267,15.01924493,177.92,177.91,2.00539047]
[1754693315467,18.20924493,177.92,177.91,2.00539047]
[1754693316278,24.51621341,177.92,177.91,2.00539047]
[1754693317274,3.08,177.91,177.88,2.00539047]
[1754693317580,3.08,177.9,177.88,2.00539047]
[1754693318072,5.6205,177.89,177.88,2.00539047]
[1754693318272,3.08,177.89,177.87,3.19]
[1754693318472,3.08,177.89,177.87,5.19539047]
[1754693318677,3.08,177.89,177.87,3.19]
[1754693318879,8.7005,177.89,177.88,3.19]
[1754693321374,3.08,177.87,177.81,377.56]
[1754693321576,3.08,177.87,177.83,2.00539047]
[1754693321773,2.00539047,177.86,177.83,2.00539047]
[1754693321971,3.08,177.85,177.83,5.19539047]
[1754693322381,3.08,177.86,177.83,2.00539047]
[1754693322575,6.30551599,177.87,177.84,3.19]
[1754693322779,8.7026,177.83,177.82,3.19]
[1754693322979,8.7026,177.83,177.82,5.19539047]
[1754693323175,8.7026,177.83,177.82,3.19]
[1754693323376,3.08,177.82,177.8,140.01]
[1754693323585,3.08,177.81,177.78,3.19]
[1754693323777,3.08,177.8,177.78,3.19]
[1754693323981,5.6238,177.79,177.77,2.00539047]
[1754693324180,8.7038,177.79,177.77,2.00539047]
[1754693324582,8.7038,177.79,177.78,3.19]
[1754693324778,5.6233,177.8,177.78,3.19]
[1754693325584,5.6236,177.79,177.78,3.19]
[1754693325783,3.08,177.81,177.78,3.19]
[1754693326784,3.08,177.8,177.78,3.19]
[1754693327184,8.7034,177.8,177.78,3.19]
[1754693327679,8.7042,177.77,177.76,136.82]
[1754693328186,8.7042,177.77,177.76,140.01]
[1754693329385,5.6242,177.77,177.76,140.01]
[1754693329685,5.6242,177.77,177.76,136.82]
[1754693329904,8.7042,177.77,177.76,140.01]
[1754693330088,5.6242,177.77,177.76,140.01]
[1754693330676,3.08,177.79,177.76,140.01]
[1754693330878,5.624,177.78,177.76,136.82]
[1754693331181,9.39974493,177.79,177.77,3.19]
[1754693331386,3.08,177.78,177.76,136.82]
[1754693331784,5.6242,177.77,177.76,136.82]
[1754693332086,8.7042,177.77,177.76,136.82]
[1754693332585,8.7042,177.77,177.76,140.01]
[1754693333487,5.6242,177.77,177.76,140.01]
[1754693333884,5.624,177.78,177.76,136.82]
[1754693334085,5.624,177.78,177.77,3.19]
[1754693334285,8.704,177.78,177.77,3.19]
[1754693338091,3.08,177.81,177.77,6.3206444]
[1754693338286,3.08,177.81,177.77,3.1306444]
[1754693338490,3.08,177.81,177.78,3.19]
[1754693338891,5.6236,177.79,177.78,3.19]
[1754693339589,8.7036,177.79,177.78,3.19]
[1754693340303,12.47974493,177.79,177.76,140.01]
[1754693340590,9.39974493,177.79,177.77,3.19]
[1754693340788,5.6242,177.77,177.76,136.82]
[1754693340986,5.6242,177.77,177.76,140.01]
[1754693341197,8.7042,177.77,177.76,140.01]
[1754693342197,5.6242,177.77,177.76,140.07]
[1754693344597,5.624,177.78,177.77,3.19]
[1754693344899,3.08,177.81,177.78,3.19]
[1754693345598,5.6235,177.8,177.78,3.19]
[1754693346095,6.30551599,177.85,177.78,3.19]
[1754693346400,2.99,177.8,177.78,3.19]
[1754693347095,8.6134,177.8,177.78,3.19]
[1754693347490,5.6236,177.79,177.78,3.19]
[1754693347796,6.30551599,177.85,177.78,3.19]
[1754693347997,2.99,177.84,177.81,3.07]
[1754693348189,5.6223,177.83,177.82,3.07]
[1754693348396,8.6123,177.83,177.82,3.07]
[1754693348695,18.01204493,177.83,177.82,3.07]
[1754693357805,5.6227,177.82,177.81,139.95]
[1754693360499,8.6127,177.82,177.81,139.95]
[1754693362609,5.6227,177.82,177.81,139.95]
[1754693364208,8.6127,177.82,177.81,139.95]
[1754693364613,8.6127,177.82,177.81,141.95268738]
[1754693364810,8.6127,177.82,177.81,139.95]
[1754693365005,8.6127,177.82,177.81,141.95268738]
[1754693365313,8.6127,177.82,177.81,138.88268738]
[1754693367907,8.6127,177.82,177.81,141.95268738]
[1754693368318,8.6127,177.82,177.81,138.88268738]
[1754693368616,18.01244493,177.82,177.81,138.88268738]
[1754693369219,18.01244493,177.82,177.81,136.88]
[1754693369413,18.01244493,177.82,177.81,139.95]
[1754693369608,15.02244493,177.82,177.81,139.95]
[1754693370720,18.01244493,177.82,177.81,139.95]
[1754693374224,15.02244493,177.82,177.81,139.95]
[1754693374617,5.6227,177.82,177.81,139.95]
[1754693378718,5.66421093,177.83,177.82,3.06]
[1754693378923,5.66421093,177.83,177.82,5.06268738]
[1754693380422,8.65421093,177.83,177.82,5.06268738]
[1754693383826,5.66421093,177.83,177.82,5.06268738]
[1754693384930,0.04181093,177.83,177.82,5.06268738]
[1754693385832,5.66411093,177.83,177.82,5.06268738]
[1754693386832,8.65411093,177.83,177.82,2.00268738]
[1754693387031,8.6127,177.82,177.81,138.88268738]
[1754693387233,14.91821599,177.82,177.81,138.88268738]
[1754693387824,14.91821599,177.82,177.81,141.94268738]
[1754693389636,14.91821599,177.82,177.81,139.94]
[1754693389826,14.91821599,177.82,177.81,141.94268738]
[1754693390029,14.91821599,177.82,177.81,139.94]
[1754693390230,14.91821599,177.82,177.81,141.94268738]
[1754693391443,11.92821599,177.82,177.81,141.94268738]
[1754693391737,5.6227,177.82,177.81,141.94268738]
[1754693393036,11.92821599,177.82,177.81,141.94268738]
[1754693393238,14.91821599,177.82,177.81,141.94268738]
[1754693393436,5.6227,177.82,177.81,141.94268738]
[1754693393738,11.92821599,177.82,177.81,141.94268738]
[1754693394144,14.91821599,177.82,177.81,141.94268738]
[1754693394340,24.31796092,177.82,177.81,141.94268738]
[1754693394734,18.01244493,177.82,177.81,130.26048738]
[1754693394932,27.47289766,177.82,177.81,130.26048738]
[1754693395645,18.07315273,177.82,177.81,130.26048738]
[1754693395849,5.623,177.81,177.8,0.04053107]
[1754693396142,8.613,177.81,177.8,0.04053107]
[1754693399242,5.623,177.81,177.8,3.10053107]
[1754693399645,8.613,177.81,177.8,3.10053107]
[1754693401849,8.613,177.81,177.8,0.04053107]
[1754693402454,8.613,177.81,177.8,3.10053107]
[1754693403243,14.92764183,177.81,177.8,3.10053107]
[1754693405543,11.93764183,177.81,177.8,6.23051042]
[1754693406945,15.17764183,177.81,177.8,6.23051042]
[1754693414051,15.17764183,177.81,177.8,3.17051042]
[1754693414458,15.17764183,177.81,177.8,6.23051042]
[1754693418455,8.863,177.81,177.8,6.23051042]
[1754693418654,8.863,177.81,177.8,5.10347054]
[1754693418850,15.17764183,177.81,177.8,5.10347054]
[1754693420154,8.863,177.81,177.8,5.10347054]
[1754693420356,15.17764183,177.81,177.8,5.10347054]
[1754693422558,15.17764183,177.81,177.8,2.04347054]
[1754693423359,24.57738676,177.81,177.8,2.04347054]
[1754693423654,18.26274493,177.81,177.8,2.04347054]
[1754693424662,18.26274493,177.81,177.8,0.04053107]
[1754693426065,18.26274493,177.81,177.8,2.04347054]
[1754693426263,8.863,177.81,177.8,5.10347054]
[1754693426467,15.17801385,177.81,177.8,5.10347054]
[1754693426671,11.93801385,177.81,177.8,5.10347054]
[1754693426870,6.31501385,177.81,177.8,5.10347054]
[1754693427366,15.17801385,177.81,177.8,5.10347054]
[1754693428068,24.57775878,177.81,177.8,2.04347054]
[1754693428269,18.26274493,177.81,177.8,2.04347054]
[1754693428670,24.57834187,177.81,177.8,2.04347054]
[1754693429169,18.26274493,177.81,177.8,2.04347054]
[1754693432767,18.26274493,177.81,177.8,5.10347054]
[1754693433770,24.58020441,177.81,177.8,5.10347054]
[1754693434075,18.26274493,177.81,177.8,5.10347054]
[1754693434776,5.623,177.81,177.8,5.10347054]
[1754693435077,8.863,177.81,177.8,5.10347054]
[1754693436188,15.18045948,177.81,177.8,5.10347054]
[1754693436377,24.58020441,177.81,177.8,2.04347054]
[1754693436878,18.26274493,177.81,177.8,2.04347054]
[1754693440180,18.26274493,177.81,177.8,5.29347054]
[1754693440381,15.02274493,177.81,177.8,5.29347054]
[1754693440582,11.94153869,177.81,177.8,5.29347054]
[1754693440775,6.31853869,177.81,177.8,5.29347054]
[1754693441181,11.94123869,177.82,177.8,5.29347054]
[1754693441377,0.04181093,177.83,177.81,3.25]
[1754693441679,0.04181093,177.83,177.82,5.25293947]
[1754693442683,0.04181093,177.83,177.82,6.37815363]
[1754693443184,3.31181093,177.83,177.82,6.37815363]
[1754693443687,0.04181093,177.83,177.82,6.37815363]
[1754693444289,0.04181093,177.83,177.82,12.00085363]
[1754693445083,0.04181093,177.83,177.82,6.37815363]
[1754693446189,3.31181093,177.83,177.82,6.37815363]
[1754693447387,0.04181093,177.83,177.82,6.37815363]
[1754693448080,3.31181093,177.83,177.82,6.37815363]
[1754693448986,0.04181093,177.83,177.82,6.37815363]
[1754693449587,0.04181093,177.83,177.82,12.00085363]
[1754693450994,8.8914,177.86,177.82,8.75085363]
[1754693451287,8.8914,177.86,177.85,6.37815363]
[1754693451590,9.46045273,177.88,177.86,3.25]
[1754693451885,3.27,177.88,177.87,6.37815363]
[1754693452084,12.66974493,177.88,177.87,6.37815363]
[1754693452884,3.27,177.88,177.87,6.37815363]
[1754693453295,8.8908,177.88,177.87,6.37815363]
[1754693454584,8.8908,177.88,177.87,3.12815363]
[1754693454989,8.8911,177.87,177.86,0.03588368]
[1754693455381,18.29084493,177.87,177.86,0.03588368]
[1754693455580,18.29084493,177.87,177.86,8.368e-05]
[1754693460396,27.75030848,177.87,177.86,8.368e-05]
[1754693460694,27.75030848,177.87,177.86,3.25008368]
[1754693460911,27.75030848,177.87,177.86,8.368e-05]
[1754693461091,24.48030848,177.87,177.86,8.368e-05]
[1754693463802,15.02084493,177.87,177.86,8.368e-05]
[1754693465891,8.8936,177.79,177.78,3.25]
[1754693466297,3.04,177.81,177.78,6.37815363]
[1754693466500,5.6235,177.8,177.79,3.23]
[1754693468900,8.6635,177.8,177.79,3.23]
[1754693469301,5.6235,177.8,177.79,3.23]
[1754693469501,8.6635,177.8,177.79,3.23]
[1754693470099,8.6636,177.79,177.78,3.23]
[1754693471896,15.70438153,177.8,177.78,3.23]
[1754693471897,21.32778153,177.8,177.78,6.35815363]
[1754693472101,5.6234,177.8,177.79,3.23]
[1754693472296,15.02306125,177.8,177.79,3.23]
[1754693478008,9.39966125,177.8,177.79,3.23]
[1754693478810,15.02296125,177.8,177.79,3.23]
[1754693481102,5.6233,177.8,177.79,3.23]
[1754693481303,8.6631,177.81,177.79,3.23]
[1754693481913,5.6231,177.81,177.8,3.12815363]
[1754693482120,15.02276125,177.81,177.8,6.35815363]
[1754693482312,8.6631,177.81,177.8,6.35815363]
[1754693486814,8.6631,177.81,177.8,3.12815363]
[1754693487412,8.6631,177.81,177.8,6.35815363]
[1754693487608,5.6231,177.81,177.8,6.35815363]
[1754693487818,8.6631,177.81,177.8,6.35815363]
[1754693489314,8.6631,177.81,177.8,3.12815363]
[1754693489515,8.6633,177.8,177.79,0.04153817]
[1754693496625,18.06296125,177.8,177.79,0.04153817]
[1754693496826,24.36768153,177.8,177.79,0.04153817]
[1754693497839,18.06296125,177.8,177.79,0.04153817]
[1754693501025,8.6633,177.8,177.79,0.04153817]
[1754693501330,8.6633,177.8,177.79,3.26153817]
[1754693502224,8.6633,177.8,177.79,0.04153817]
[1754693502623,8.6633,177.8,177.79,3.26153817]
[1754693503028,8.6633,177.8,177.79,0.04153817]
[1754693504535,18.06296125,177.8,177.79,0.04153817]
[1754693507434,27.52386827,177.8,177.79,0.04153817]
[1754693507940,27.52386827,177.8,177.79,3.817e-05]
[1754693512347,27.52386827,177.8,177.79,3.22003817]
[1754693512948,18.12420702,177.8,177.79,3.22003817]
[1754693513243,18.12420702,177.8,177.79,3.817e-05]
[1754693513449,15.08420702,177.8,177.79,3.817e-05]
[1754693514752,24.48386827,177.8,177.79,3.817e-05]
[1754693514944,15.02296125,177.8,177.79,3.817e-05]
[1754693515145,3.25,177.79,177.72,139.78815363]
[1754693515452,3.25,177.76,177.72,139.88]
[1754693515751,8.8753,177.74,177.73,3.22]
[1754693522049,5.6253,177.74,177.73,3.22]
[1754693526971,0.03621806,177.75,177.73,3.22]
[1754693526972,5.66131806,177.75,177.73,3.22]
[1754693527159,5.66131806,177.75,177.7,136.66]
[1754693527160,5.66131806,177.75,177.74,6.21815363]
[1754693527460,0.03621806,177.75,177.74,142.87815363]
[1754693527756,5.6247,177.76,177.75,3.09]
[1754693528650,8.8647,177.76,177.75,3.09]
[1754693529553,5.6247,177.76,177.75,3.09]
[1754693533562,5.6249,177.75,177.74,0.03616894]
[1754693533859,5.6249,177.75,177.62,14.4337798]
[1754693533860,3.24,177.75,177.7,140.09]
[1754693534065,5.6265,177.71,177.7,140.09]
[1754693534364,8.8665,177.71,177.7,140.09]
[1754693534864,5.6271,177.69,177.67,6.21815363]
[1754693535160,8.8671,177.69,177.68,3.09]
[1754693535765,8.8678,177.67,177.66,3.09]
[1754693535969,8.8678,177.67,177.66,140.29]
[1754693536462,13.59523658,177.67,177.66,140.29]
[1754693538367,8.8678,177.67,177.66,140.29]
[1754693541270,13.59523658,177.67,177.66,140.29]
[1754693541468,8.8678,177.67,177.66,140.29]
[1754693543466,5.6278,177.67,177.66,140.29]
[1754693544677,8.8678,177.67,177.66,140.29]
[1754693544972,8.8678,177.67,177.63,3.12815363]
[1754693544973,5.6284,177.64,177.63,3.12815363]
[1754693545171,13.58743589,177.64,177.63,140.36815363]
[1754693545379,18.26806125,177.64,177.63,137.24]
[1754693545873,8.8684,177.64,177.63,137.24]
[1754693546069,13.58580246,177.64,177.63,137.24]
[1754693546369,10.34580246,177.64,177.63,140.36815363]
[1754693547072,22.98546371,177.64,177.63,140.33]
[1754693547275,22.98546371,177.64,177.63,137.24]
[1754693548376,18.26806125,177.64,177.63,140.33]
[1754693549173,22.98546371,177.64,177.63,140.33]
[1754693549370,18.26806125,177.64,177.63,140.33]
[1754693549872,12.63966125,177.64,177.63,140.33]
[1754693550274,9.39966125,177.64,177.63,140.33]
[1754693550576,15.02806125,177.64,177.63,140.33]
[1754693551973,18.26806125,177.64,177.63,137.24]
[1754693552179,18.26806125,177.64,177.63,140.33]
[1754693553579,15.02806125,177.64,177.63,140.33]
[1754693554878,9.39966125,177.64,177.63,140.33]
[1754693555085,5.6282,177.65,177.64,3.09]
[1754693555374,5.6282,177.65,177.64,6.21815363]
[1754693556275,7.95740246,177.66,177.64,6.21815363]
[1754693556480,17.35706371,177.66,177.65,3.08]
[1754693556979,17.35706371,177.66,177.64,3.12815363]
[1754693557174,3.29,177.65,177.64,3.12815363]
[1754693558180,8.9181,177.65,177.64,3.12815363]
[1754693558582,9.39966125,177.66,177.64,6.20815363]
[1754693558883,18.31776125,177.66,177.64,6.20815363]
[1754693560076,3.29,177.65,177.64,6.20815363]
[1754693560591,15.02776125,177.66,177.64,6.20815363]
[1754693560779,18.31776125,177.66,177.64,6.20815363]
[1754693562185,3.29,177.65,177.64,6.20815363]
[1754693563382,3.29,177.65,177.64,3.12815363]
[1754693564689,8.9181,177.65,177.64,3.12815363]
[1754693568885,3.29,177.65,177.64,3.12815363]
[1754693570294,8.9181,177.65,177.64,3.12815363]
[1754693570781,13.63550246,177.65,177.64,2.00648406]
[1754693570983,8.9181,177.65,177.64,2.00648406]
[1754693571188,6.30584128,177.67,177.62,0.03905589]
[1754693571388,8.00092384,177.63,177.62,2.04553995]
[1754693571587,8.00092384,177.63,177.62,139.28553995]
[1754693571887,3.29,177.63,177.62,139.28553995]
[1754693572086,3.29,177.63,177.62,142.36553995]
[1754693574282,8.00092384,177.63,177.62,142.36553995]
[1754693576396,3.29,177.63,177.62,142.36553995]
[1754693577594,3.29,177.63,177.62,139.28553995]
[1754693577795,8.9188,177.63,177.62,139.28553995]
[1754693578486,15.22464128,177.63,177.62,139.28553995]
[1754693578684,24.62430253,177.63,177.62,139.28553995]
[1754693579095,24.62430253,177.63,177.62,137.27905589]
[1754693579503,18.31846125,177.63,177.62,137.27905589]
[1754693584895,3.29,177.63,177.62,3.11905589]
[1754693585093,6.31326,177.63,177.62,3.11905589]
[1754693586599,9.47326,177.63,177.62,3.11905589]
[1754693589402,3.16,177.63,177.62,3.11905589]
[1754693592194,8.7888,177.63,177.62,0.03905589]
[1754693592492,18.18846125,177.63,177.62,0.03905589]
[1754693593103,27.67090059,177.63,177.62,0.03905589]
[1754693593402,9.52287813,177.64,177.62,3.12905589]